fUST/lending_fUST_20240612
["ID","MTS","AMOUNT","RATE_DAILY","PERIOD"]
[329261016,1718203861431,-745.58679815,0.00019178,2]
[329261018,1718203861443,-745.58679815,0.00019178,2]
[329261020,1718203861460,-1683.02332527,0.00019178,2]
[329261023,1718203861479,-1683.02332527,0.00019178,2]
[329261025,1718203861501,-1683.02332527,0.00019178,2]
[329261028,1718203861517,-1683.02332527,0.00019178,2]
[329261030,1718203861531,-1683.02332527,0.00019178,2]
[329261032,1718203861542,-745.58679815,0.00019178,2]
[329261034,1718203861553,-1683.02332527,0.00019178,2]
[329261036,1718203861564,-1683.02332527,0.00019178,2]
[329261038,1718203861575,-745.58679815,0.00019178,2]
[329261039,1718203861585,-1683.02332527,0.00019178,2]
[329261042,1718203861596,-745.58679815,0.00019178,2]
[329261044,1718203861608,-745.58679815,0.00019178,2]
[329261045,1718203861618,-1683.02332527,0.00019178,2]
[329261047,1718203861629,-1683.02332527,0.00019178,2]
[329261049,1718203861642,-1683.02332527,0.00019178,2]
[329261052,1718203861653,-1683.02332527,0.00019178,2]
[329261053,1718203861664,-1683.02332527,0.00019178,2]
[329261056,1718203861675,-1683.02332527,0.00019178,2]
[329261058,1718203861688,-1683.02332527,0.00019178,2]
[329261059,1718203861700,-736.81518876,0.00019178,2]
[329261061,1718203861712,-409.01546775,0.00019178,2]
[329261106,1718203862354,-150.0,0.00018284,2]
[329261108,1718203862364,-327.79972101,0.00019178,2]
[329261110,1718203862375,-736.81518876,0.00019178,2]
[329261113,1718203862398,-736.81518876,0.00019178,2]
[329261115,1718203862410,-736.81518876,0.00019178,2]
[329261117,1718203862421,-736.81518876,0.00019178,2]
[329261119,1718203862431,-736.81518876,0.00019178,2]
[329261120,1718203862442,-736.81518876,0.00019178,2]
[329261123,1718203862454,-736.81518876,0.00019178,2]
[329261125,1718203862469,-736.81518876,0.00019178,2]
[329261127,1718203862480,-736.81518876,0.00019178,2]
[329261129,1718203862490,-736.81518876,0.00019178,2]
[329261131,1718203862501,-736.81518876,0.00019178,2]
[329261133,1718203862512,-736.81518876,0.00019178,2]
[329261135,1718203862522,-736.81518876,0.00019178,2]
[329261137,1718203862534,-736.81518876,0.00019178,2]
[329261139,1718203862547,-1671.74219066,0.00019178,2]
[329261141,1718203862558,-1671.74219066,0.00019178,2]
[329261143,1718203862574,-736.81518876,0.00019178,2]
[329261144,1718203862590,-1671.74219066,0.00019178,2]
[329261146,1718203862601,-1671.74219066,0.00019178,2]
[329261147,1718203862618,-1671.74219066,0.00019178,2]
[329261149,1718203862629,-1671.74219066,0.00019178,2]
[329261151,1718203862644,-1671.74219066,0.00019178,2]
[329261152,1718203862656,-1671.74219066,0.00019178,2]
[329261154,1718203862670,-1671.74219066,0.00019178,2]
[329261156,1718203862680,-1671.74219066,0.00019178,2]
[329261158,1718203862691,-1671.74219066,0.00019178,2]
[329261160,1718203862706,-1671.74219066,0.00019178,2]
[329261163,1718203862724,-1671.74219066,0.00019178,2]
[329261164,1718203862738,-1671.74219066,0.00019178,2]
[329261166,1718203862750,-1671.74219066,0.00019178,2]
[329261169,1718203862785,-1671.74219066,0.00019178,2]
[329261171,1718203862798,-1671.74219066,0.00019178,2]
[329261173,1718203862813,-1671.74219066,0.00019178,2]
[329261175,1718203862825,-1671.74219066,0.00019178,2]
[329261177,1718203862848,-1651.68128439,0.00019178,2]
[329261179,1718203862864,-1651.68128439,0.00019178,2]
[329261181,1718203862888,-1651.68128439,0.00019178,2]
[329261183,1718203862907,-1651.68128439,0.00019178,2]
[329261185,1718203862921,-1651.68128439,0.00019178,2]
[329261187,1718203862936,-500.0,0.00019178,2]
[329261189,1718203862955,-500.0,0.00019178,2]
[329261191,1718203862974,-500.0,0.00019178,2]
[329261193,1718203862992,-500.0,0.00019178,4]
[329261195,1718203863003,-500.0,0.00019178,2]
[329261197,1718203863018,-617.55,0.00019178,2]
[329261199,1718203863032,-500.0,0.00019178,2]
[329261201,1718203863048,-500.0,0.00019178,2]
[329261203,1718203863073,-356.73,0.00019178,2]
[329261204,1718203863091,-534.14,0.00019178,2]
[329261206,1718203863105,-500.0,0.00019178,2]
[329261208,1718203863117,-674.04,0.00019178,2]
[329261210,1718203863164,-716.22,0.00019178,2]
[329261212,1718203863189,-998.4,0.00019178,2]
[329261214,1718203863225,-666.12,0.00019178,2]
[329261215,1718203863260,-711.81,0.00019178,2]
[329261217,1718203863279,-500.0,0.00019178,2]
[329261218,1718203863302,-500.0,0.00019178,2]
[329261221,1718203863324,-4052.7,0.00019178,2]
[329261223,1718203863344,-500.0,0.00019178,2]
[329261224,1718203863357,-500.0,0.00019178,2]
[329261226,1718203863367,-643.71,0.00019178,2]
[329261228,1718203863387,-11163.62,0.00019178,2]
[329261229,1718203863404,-1140.24,0.00019178,2]
[329261231,1718203863436,-1647.71,0.00019178,2]
[329261233,1718203863447,-3364.5,0.00019178,2]
[329261235,1718203863458,-500.0,0.00019178,2]
[329261237,1718203863469,-500.0,0.00019178,2]
[329261239,1718203863483,-278.30430788,0.00019178,2]
[329261241,1718203863495,-1148.48,0.00019178,2]
[329261243,1718203863527,-572.78,0.00019178,2]
[329261244,1718203863542,-7840.43,0.00019178,2]
[329261246,1718203863553,-1185.47,0.00019178,2]
[329261248,1718203863569,-500.0,0.00019178,2]
[329261250,1718203863581,-500.0,0.00019178,2]
[329261252,1718203863609,-660.13,0.00019178,2]
[329261254,1718203863620,-1085.84,0.00019178,2]
[329261256,1718203863636,-586.58,0.00019178,2]
[329261259,1718203863659,-439.84,0.00019178,2]
[329261261,1718203863702,-3463.55,0.00019178,2]
[329261264,1718203863723,-5631.63,0.00019178,2]
[329261266,1718203863737,-500.0,0.00019178,2]
[329261268,1718203863769,-1707.16,0.00019178,2]
[329261270,1718203863795,-239.717922,0.00019178,2]
[329261272,1718203863806,-498.960091,0.00019185,2]
[329261274,1718203863828,-506.98427,0.00019185,2]
[329261276,1718203863848,-381.584427,0.00019185,2]
[329261278,1718203863863,-260.543205,0.00019185,2]
[329261280,1718203863878,-294.428127,0.00019185,2]
[329261281,1718203863889,-171.481871,0.00019185,2]
[329261283,1718203863903,-473.099348,0.00019185,2]
[329261284,1718203863931,-782.322044,0.00019185,2]
[329261287,1718203863955,-311.108257,0.00019185,2]
[329261289,1718203863976,-332.87535,0.00019185,2]
[329261291,1718203863989,-371.838374,0.00019185,2]
[329261293,1718203864006,-311.108258,0.00019185,2]
[329261295,1718203864018,-663.9,0.0001921,2]
[329261297,1718203864044,-600.0,0.00019236,2]
[329261299,1718203864084,-306.0,0.0001937,2]
[329261301,1718203864102,-153.0,0.0001937,2]
[329261303,1718203864125,-153.0,0.0001937,2]
[329261306,1718203864152,-153.0,0.0001937,2]
[329261307,1718203864171,-153.0,0.0001937,2]
[329261309,1718203864186,-153.0,0.0001937,2]
[329261311,1718203864264,-153.0,0.0001937,2]
[329261314,1718203864332,-153.0,0.0001937,2]
[329261315,1718203864343,-153.0,0.0001937,2]
[329261317,1718203864371,-153.0,0.00019372,2]
[329261319,1718203864383,-153.0,0.00019372,2]
[329261321,1718203864396,-153.0,0.00019372,2]
[329261323,1718203864422,-663.9,0.00019372,2]
[329261330,1718203864609,-420.0060389,0.00019415,2]
[329261331,1718203864629,-12738.42007189,0.0001943,5]
[329261333,1718203864641,-600.0,0.0001943,2]
[329261335,1718203864656,-9584.16374657,0.00019451,2]
[329261338,1718203864679,-500.0,0.00019452,2]
[329261339,1718203864708,-500.0,0.00019452,2]
[329261341,1718203864743,-500.0,0.00019452,2]
[329261342,1718203864757,-500.0,0.00019452,2]
[329261344,1718203864768,-500.0,0.00019452,4]
[329261346,1718203864781,-500.0,0.00019452,2]
[329261348,1718203864797,-617.55,0.00019452,2]
[329261349,1718203864818,-189.26433692,0.00019452,2]
[329261352,1718203864840,-500.0,0.00019452,2]
[329261355,1718203864880,-534.14,0.00019452,2]
[329261357,1718203864893,-500.0,0.00019452,2]
[329261359,1718203864904,-674.04,0.00019452,2]
[329261360,1718203864914,-716.22,0.00019452,2]
[329261362,1718203864926,-998.4,0.00019452,2]
[329261364,1718203864936,-666.12,0.00019452,2]
[329261366,1718203864952,-711.81,0.00019452,2]
[329261368,1718203864963,-272.236753,0.00019452,2]
[329261370,1718203864988,-500.0,0.00019452,2]
[329261371,1718203865000,-500.0,0.00019452,2]
[329261372,1718203865013,-4052.7,0.00019452,2]
[329261374,1718203865024,-272.236753,0.00019452,2]
[329261375,1718203865043,-500.0,0.00019452,2]
[329261377,1718203865085,-500.0,0.00019452,2]
[329261379,1718203865102,-643.71,0.00019452,2]
[329261381,1718203865117,-207.250766,0.00019452,2]
[329261383,1718203865142,-11163.62,0.00019452,2]
[329261384,1718203865177,-207.250766,0.00019452,2]
[329261386,1718203865188,-1140.24,0.00019452,2]
[329261387,1718203865201,-1647.71,0.00019452,2]
[329261389,1718203865211,-3364.5,0.00019452,2]
[329261390,1718203865226,-314.98139,0.00019452,2]
[329261392,1718203865252,-314.98139,0.00019452,2]
[329261394,1718203865262,-500.0,0.00019452,2]
[329261396,1718203865276,-151.0,0.00019452,2]
[329261398,1718203865289,-500.0,0.00019452,2]
[329261400,1718203865299,-399.34355,0.00019452,2]
[329261402,1718203865312,-399.34355,0.00019452,2]
[329261404,1718203865322,-163.67002,0.00019452,2]
[329261406,1718203865333,-163.67002,0.00019452,2]
[329261408,1718203865343,-151.0,0.00019452,2]
[329261410,1718203865355,-1148.48,0.00019452,2]
[329261412,1718203865365,-572.78,0.00019452,2]
[329261414,1718203865377,-7840.43,0.00019452,2]
[329261416,1718203865390,-1185.47,0.00019452,2]
[329261417,1718203865409,-151.0,0.00019452,2]
[329261419,1718203865419,-500.0,0.00019452,2]
[329261422,1718203865431,-151.0,0.00019452,2]
[329261423,1718203865442,-266.56706925,0.00019452,2]
[329261425,1718203865454,-660.13,0.00019452,2]
[329261427,1718203865464,-1085.84,0.00019452,2]
[329261429,1718203865476,-586.58,0.00019452,2]
[329261431,1718203865487,-3463.55,0.00019452,2]
[329261433,1718203865500,-5631.63,0.00019452,2]
[329261436,1718203865516,-151.0,0.00019452,2]
[329261437,1718203865528,-500.0,0.00019452,2]
[329261440,1718203865539,-1707.16,0.00019452,2]
[329261441,1718203865558,-155.0,0.0001946,2]
[329261444,1718203865569,-600.0,0.00019624,2]
[329261445,1718203865579,-320.0,0.00019688,2]
[329261447,1718203865591,-504.85247161,0.00019726,2]
[329261449,1718203865602,-2000.0,0.00019726,2]
[329261452,1718203865613,-500.0,0.00019726,2]
[329261453,1718203865625,-500.0,0.00019726,2]
[329261455,1718203865635,-500.0,0.00019726,2]
[329261457,1718203865647,-500.0,0.00019726,4]
[329261459,1718203865658,-500.0,0.00019726,2]
[329261461,1718203865669,-617.55,0.00019726,2]
[329261464,1718203865679,-500.0,0.00019726,2]
[329261466,1718203865690,-151.0,0.00019726,2]
[329261467,1718203865700,-534.14,0.00019726,2]
[329261469,1718203865710,-500.0,0.00019726,2]
[329261471,1718203865720,-674.04,0.00019726,2]
[329261473,1718203865730,-716.22,0.00019726,2]
[329261475,1718203865741,-998.4,0.00019726,2]
[329261477,1718203865751,-666.12,0.00019726,2]
[329261479,1718203865763,-711.81,0.00019726,2]
[329261481,1718203865773,-500.0,0.00019726,2]
[329261483,1718203865783,-256.82526891,0.00019726,2]
[329261485,1718203865793,-4052.7,0.00019726,2]
[329261487,1718203865804,-500.0,0.00019726,2]
[329261489,1718203865814,-500.0,0.00019726,2]
[329261491,1718203865824,-643.71,0.00019726,2]
[329261493,1718203865834,-11163.62,0.00019726,2]
[329261495,1718203865846,-1140.24,0.00019726,2]
[329261497,1718203865860,-1647.71,0.00019726,2]
[329261499,1718203865870,-3364.5,0.00019726,2]
[329261501,1718203865880,-500.0,0.00019726,2]
[329261503,1718203865891,-500.0,0.00019726,2]
[329261505,1718203865902,-1148.48,0.00019726,2]
[329261507,1718203865912,-572.78,0.00019726,2]
[329261509,1718203865923,-7840.43,0.00019726,2]
[329261511,1718203865936,-1185.47,0.00019726,2]
[329261513,1718203865972,-500.0,0.00019726,2]
[329261515,1718203866003,-660.13,0.00019726,2]
[329261518,1718203866029,-1085.84,0.00019726,2]
[329261519,1718203866044,-586.58,0.00019726,2]
[329261521,1718203866078,-3463.55,0.00019726,2]
[329261523,1718203866090,-5631.63,0.00019726,2]
[329261525,1718203866101,-500.0,0.00019726,2]
[329261527,1718203866113,-1707.16,0.00019726,2]
[329261529,1718203866126,-1002.29928114,0.00019819,2]
[329261531,1718203866145,-2000.0,0.00019997,2]
[329261533,1718203866158,-20951.49637284,0.0002,2]
[329261535,1718203866170,-9502.43188347,0.0002,2]
[329261537,1718203866183,-61214.17836838,0.0002,2]
[329261539,1718203866194,-155.16244987,0.0002,2]
[329261541,1718203866204,-435.0,0.0002,2]
[329261543,1718203866215,-155.13378311,0.0002,2]
[329261545,1718203866226,-160.0,0.0002,2]
[329261547,1718203866238,-254.0,0.0002,2]
[329261549,1718203866249,-160.0,0.0002,2]
[329261551,1718203866259,-155.14376005,0.0002,2]
[329261553,1718203866271,-155.01240099,0.0002,2]
[329261555,1718203866281,-153.505019,0.0002,2]
[329261557,1718203866291,-529.15300824,0.0002,4]
[329261558,1718203866302,-508.0,0.0002,2]
[329261560,1718203866312,-508.0,0.0002,2]
[329261562,1718203866321,-180.5,0.0002,2]
[329261564,1718203866332,-500.0,0.0002,2]
[329261566,1718203866343,-544.0,0.0002,2]
[329261568,1718203866353,-641.63139607,0.0002,2]
[329261570,1718203866363,-1000.0,0.0002,20]
[329261572,1718203866374,-4249.0,0.0002,2]
[329261574,1718203866384,-36656.25337607,0.0002,2]
[329261576,1718203866397,-69798.0,0.0002,2]
[329261578,1718203866410,-544.0,0.0002,2]
[329261580,1718203866421,-2000.0,0.0002,2]
[329261582,1718203866434,-2000.0,0.0002,2]
[329261583,1718203866445,-810.1327493,0.0002,2]
[329261585,1718203866457,-508.0,0.0002,2]
[329261587,1718203866475,-224.31034195,0.0002,2]
[329261589,1718203866489,-1557.0,0.0002,2]
[329261591,1718203866503,-1000.0,0.0002,2]
[329261593,1718203866513,-4262.24575082,0.0002,2]
[329261595,1718203866526,-544.0,0.0002,2]
[329261597,1718203866540,-544.0,0.0002,2]
[329261599,1718203866556,-15939.11743186,0.0002,7]
[329261600,1718203866575,-2000.0,0.0002,2]
[329261602,1718203866592,-2000.0,0.0002,2]
[329261604,1718203866607,-302.69584397,0.0002,2]
[329261606,1718203866624,-2000.0,0.0002,2]
[329261608,1718203866634,-2000.0,0.0002,2]
[329261610,1718203866649,-5000.0,0.0002,10]
[329261612,1718203866659,-222.15995424,0.0002,2]
[329261614,1718203866670,-301.751632,0.0002,8]
[329261616,1718203866684,-52809.72015128,0.0002,2]
[329261618,1718203866699,-151.0,0.0002,2]
[329261620,1718203866717,-6386.61524585,0.0002,2]
[329261621,1718203866728,-56525.07460836,0.0002,2]
[329262958,1718204340197,1336.94145147,9.999e-05,2]
[329262960,1718204371661,285.28537186,0.00016986,15]
[329262969,1718204474220,154.98450155,9.999e-05,2]
[329262970,1718204492048,285.28537187,0.00016712,15]
[329262971,1718204523490,1518.53802369,9.999e-05,2]
[329262973,1718204848658,-519.54240298,0.00028292,120]
[329262974,1718204848691,-1000.0,0.00028292,120]
[329262975,1718204848726,-1000.0,0.00028292,120]
[329262976,1718204848785,-529.699999,0.00028292,120]
[329262977,1718204848821,-1996950.75759802,0.00028292,120]
[329262978,1718204853350,-2000000.0,0.00028292,120]
[329262979,1718204856471,-462302.4532642,0.00028292,120]
[329262980,1718204856500,-1956.62171991,0.00028292,120]
[329262981,1718204856528,-653.0,0.00028292,120]
[329262982,1718204856555,-848.30342301,0.00028292,120]
[329262983,1718204856724,-894.59306564,0.00028292,120]
[329262984,1718204856753,-860.73807853,0.00028292,120]
[329262985,1718204856782,-1017.28565618,0.00028292,120]
[329262986,1718204856812,-2699.63297734,0.00028292,90]
[329262987,1718204856840,-998.83147927,0.00028292,120]
[329262988,1718204856868,-1000.0,0.00028292,90]
[329262989,1718204856896,-1000.0,0.00028292,90]
[329262990,1718204856924,-529.699999,0.00028292,90]
[329262991,1718204856952,-1100.63653808,0.00028292,120]
[329262992,1718204856979,-988.35006569,0.00028292,120]
[329262993,1718204857007,-3851.49148289,0.00028292,120]
[329262994,1718204857036,-5000.0,0.00028292,120]
[329262995,1718204857065,-5000.0,0.00028292,120]
[329262996,1718204857094,-11257.76267326,0.00028292,120]
[329263094,1718205037112,-24900.0,0.00014946,2]
[329263096,1718205037128,-300.0,0.00015503,2]
[329263098,1718205037139,-300.0,0.00015503,2]
[329263101,1718205037161,-155.04650155,0.00015504,2]
[329263103,1718205037171,-1517.78461495,0.00015504,2]
[329263105,1718205037184,-1877.30128471,0.00015504,2]
[329263107,1718205037195,-3000.0,0.00015506,2]
[329263110,1718205037205,-1145.89040174,0.00016238,2]
[329263111,1718205037216,-819.5025079,0.00016338,2]
[329263113,1718205037226,-228.15123184,0.00016436,2]
[329263116,1718205037236,-11305.54504539,0.00016436,2]
[329263118,1718205037246,-2475.34668873,0.00016436,2]
[329263119,1718205037256,-235.49923282,0.00016436,2]
[329263122,1718205037266,-207.17413057,0.00016436,2]
[329263124,1718205037277,-2037.00298008,0.00016436,2]
[329263125,1718205037287,-155.01550155,0.00016437,2]
[329263127,1718205037298,-9092.41046966,0.00016437,2]
[329263129,1718205037308,-500.0,0.00016438,2]
[329263131,1718205037318,-500.0,0.00016438,2]
[329263133,1718205037328,-500.0,0.00016438,2]
[329263135,1718205037338,-500.0,0.00016438,2]
[329263137,1718205037349,-500.0,0.00016438,2]
[329263140,1718205037360,-500.0,0.00016438,2]
[329263142,1718205037370,-500.0,0.00016438,2]
[329263144,1718205037383,-500.0,0.00016438,2]
[329263146,1718205037397,-525.84493326,0.00016438,2]
[329263148,1718205037416,-500.0,0.00016438,2]
[329263150,1718205037428,-500.0,0.00016438,4]
[329263152,1718205037443,-500.0,0.00016438,2]
[329263153,1718205037465,-500.0,0.00016438,2]
[329263155,1718205037478,-537.34518742,0.00016438,2]
[329263157,1718205037511,-500.0,0.00016438,2]
[329263159,1718205037533,-500.0,0.00016438,2]
[329263162,1718205037547,-500.0,0.00016438,2]
[329263164,1718205037568,-500.0,0.00016438,2]
[329263167,1718205037585,-250.0,0.00016438,2]
[329263169,1718205037595,-500.0,0.00016438,2]
[329263171,1718205037606,-500.0,0.00016438,2]
[329263173,1718205037616,-500.0,0.00016438,2]
[329263174,1718205037625,-500.0,0.00016438,2]
[329263176,1718205037636,-34.20240409,0.00016438,2]
[329263179,1718205037651,-465.79759591,0.00016438,2]
[329263181,1718205037663,-500.0,0.00016438,2]
[329263183,1718205037675,-560.08180357,0.00016438,2]
[329263185,1718205037686,-508.0361495,0.00016438,2]
[329263188,1718205037702,-500.0,0.00016438,2]
[329263189,1718205037719,-500.0,0.00016438,2]
[329263191,1718205037736,-500.0,0.00016438,2]
[329263193,1718205037751,-500.0,0.00016438,2]
[329263195,1718205037768,-500.0,0.00016438,2]
[329263196,1718205037779,-500.0,0.00016438,2]
[329263198,1718205037794,-500.0,0.00016438,2]
[329263200,1718205037811,-500.0,0.00016438,2]
[329263202,1718205037823,-537.36362719,0.00016438,2]
[329263203,1718205037834,-501.12923852,0.00016438,2]
[329263206,1718205037856,-500.0,0.00016438,2]
[329263208,1718205037870,-500.0,0.00016438,2]
[329263211,1718205037888,-500.0,0.00016438,2]
[329263212,1718205037901,-508.5,0.00016438,2]
[329263214,1718205037917,-500.0,0.00016438,2]
[329263216,1718205037932,-500.0,0.00016438,2]
[329263218,1718205037946,-500.0,0.00016438,2]
[329263220,1718205037958,-500.0,0.00016438,2]
[329263222,1718205037976,-500.0,0.00016438,2]
[329263224,1718205037996,-250.80342061,0.00016438,2]
[329264095,1718205052330,-500.0,0.00016438,2]
[329264098,1718205052348,-500.0,0.00016438,2]
[329264103,1718205052364,-500.0,0.00016438,2]
[329264107,1718205052380,-500.0,0.00016438,2]
[329264113,1718205052400,-500.0,0.00016438,2]
[329264116,1718205052417,-500.0,0.00016438,2]
[329264119,1718205052428,-500.0,0.00016438,2]
[329264123,1718205052440,-500.0,0.00016438,2]
[329264126,1718205052454,-500.0,0.00016438,2]
[329264130,1718205052465,-584.29218765,0.00016438,2]
[329264133,1718205052480,-500.0,0.00016438,2]
[329264136,1718205052491,-500.0,0.00016438,2]
[329264138,1718205052526,-500.0,0.00016438,2]
[329264141,1718205052545,-500.0,0.00016438,2]
[329264142,1718205052556,-500.0,0.00016438,2]
[329264144,1718205052582,-500.0,0.00016438,2]
[329264146,1718205052595,-500.0,0.00016438,2]
[329264148,1718205052612,-519.8,0.00016438,2]
[329264149,1718205052627,-500.0,0.00016438,2]
[329264152,1718205052653,-249.55785547,0.00016438,2]
[329264154,1718205052672,-500.0,0.00016438,2]
[329264156,1718205052684,-500.0,0.00016438,2]
[329264158,1718205052696,-500.0,0.00016438,2]
[329264160,1718205052708,-500.0,0.00016438,2]
[329264162,1718205052719,-500.0,0.00016438,2]
[329264164,1718205052738,-500.0,0.00016438,2]
[329264166,1718205052756,-500.0,0.00016438,2]
[329264168,1718205052767,-500.0,0.00016438,2]
[329264169,1718205052782,-500.0,0.00016438,2]
[329264171,1718205052798,-500.0,0.00016438,2]
[329264173,1718205052812,-500.0,0.00016438,2]
[329264175,1718205052826,-500.0,0.00016438,2]
[329264177,1718205052837,-500.0,0.00016438,2]
[329264179,1718205052849,-500.0,0.00016438,2]
[329264181,1718205052860,-500.0,0.00016438,2]
[329264183,1718205052874,-500.0,0.00016438,2]
[329264185,1718205052892,-500.0,0.00016438,2]
[329264187,1718205052908,-500.0,0.00016438,2]
[329264189,1718205052921,-500.0,0.00016438,2]
[329264191,1718205052937,-500.0,0.00016438,2]
[329264193,1718205052950,-500.0,0.00016438,2]
[329264195,1718205052968,-500.0,0.00016438,2]
[329264196,1718205052981,-500.0,0.00016438,2]
[329264198,1718205053000,-500.0,0.00016438,2]
[329264201,1718205053020,-500.0,0.00016438,2]
[329264204,1718205053045,-406.1297036,0.00016438,2]
[329264206,1718205053064,-500.0,0.00016438,2]
[329264208,1718205053076,-500.0,0.00016438,2]
[329264210,1718205053087,-538.01,0.00016438,2]
[329264213,1718205053113,-500.0,0.00016438,2]
[329264216,1718205053146,-500.0,0.00016438,2]
[329264218,1718205053180,-500.0,0.00016438,2]
[329264220,1718205053191,-500.0,0.00016438,2]
[329264221,1718205053202,-500.0,0.00016438,2]
[329264223,1718205053213,-500.0,0.00016438,2]
[329264225,1718205053226,-500.0,0.00016438,2]
[329264227,1718205053238,-500.0,0.00016438,2]
[329264229,1718205053267,-894.59,0.00016438,2]
[329264230,1718205053278,-500.0,0.00016438,2]
[329264233,1718205053294,-561.51,0.00016438,2]
[329264236,1718205053313,-1000.15,0.00016438,2]
[329264238,1718205053342,-500.0,0.00016438,2]
[329264240,1718205053353,-866.36,0.00016438,2]
[329264242,1718205053363,-500.0,0.00016438,2]
[329264245,1718205053391,-538.13452789,0.00016438,2]
[329264246,1718205053402,-975.17,0.00016438,2]
[329264248,1718205053418,-627.99,0.00016438,2]
[329264249,1718205053429,-500.0,0.00016438,2]
[329264252,1718205053453,-500.0,0.00016438,2]
[329264255,1718205053471,-500.0,0.00016438,2]
[329264259,1718205053497,-500.0,0.00016438,2]
[329264262,1718205053529,-781.98,0.00016438,2]
[329264266,1718205053550,-2549.55,0.00016438,2]
[329264269,1718205053571,-500.0,0.00016438,2]
[329264273,1718205053583,-500.0,0.00016438,2]
[329264275,1718205053601,-500.0,0.00016438,2]
[329264277,1718205053627,-1397.37,0.00016438,2]
[329264279,1718205053647,-598.07,0.00016438,2]
[329264281,1718205053671,-500.0,0.00016438,2]
[329264282,1718205053684,-634.57,0.00016438,2]
[329264284,1718205053696,-500.0,0.00016438,2]
[329264286,1718205053709,-500.0,0.00016438,2]
[329264289,1718205053726,-500.0,0.00016438,2]
[329264291,1718205053744,-500.0,0.00016438,2]
[329264293,1718205053762,-4340.08,0.00016438,2]
[329264295,1718205053775,-500.0,0.00016438,2]
[329264297,1718205053797,-500.0,0.00016438,2]
[329264299,1718205053811,-500.0,0.00016438,2]
[329264301,1718205053823,-500.0,0.00016438,2]
[329264303,1718205053837,-500.0,0.00016438,2]
[329264305,1718205053847,-500.0,0.00016438,2]
[329264307,1718205053858,-3317.59,0.00016438,2]
[329264309,1718205053870,-500.0,0.00016438,2]
[329264311,1718205053887,-500.0,0.00016438,2]
[329264313,1718205053898,-500.0,0.00016438,2]
[329264315,1718205053908,-423.86536635,0.00016438,2]
[329264316,1718205053928,-500.0,0.00016438,2]
[329264318,1718205053944,-8992.89,0.00016438,2]
[329264320,1718205053961,-550.13,0.00016438,2]
[329264322,1718205053972,-500.0,0.00016438,2]
[329264324,1718205053991,-1361.27,0.00016438,2]
[329264326,1718205054020,-500.0,0.00016438,2]
[329264328,1718205054036,-2578.88,0.00016438,2]
[329264331,1718205054051,-500.0,0.00016438,2]
[329264333,1718205054080,-500.0,0.00016438,2]
[329264335,1718205054096,-500.0,0.00016438,2]
[329264337,1718205054117,-500.0,0.00016438,2]
[329264339,1718205054130,-500.0,0.00016438,2]
[329264341,1718205054153,-500.0,0.00016438,2]
[329264343,1718205054169,-500.0,0.00016438,2]
[329264345,1718205054181,-500.0,0.00016438,2]
[329264346,1718205054196,-573.432475,0.00016438,2]
[329264348,1718205054209,-500.0,0.00016438,2]
[329264350,1718205054222,-500.0,0.00016438,2]
[329264352,1718205054235,-500.0,0.00016438,2]
[329264354,1718205054247,-500.0,0.00016438,2]
[329264357,1718205054272,-500.0,0.00016438,2]
[329264359,1718205054287,-192.96702645,0.00016438,2]